[Event "Grandmaster Triathlon - Blitz (GM2)"]
[Site "Biel, Switzerland"]
[Date "2026.07.19"]
[Round "2.2"]
[White "Yip, Carissa"]
[Black "Vaishali, Rameshbabu"]
[Result "0-1"]
[TimeControl "3 + 2"]
[WhiteTitle "-"]
[BlackTitle "-"]
[WhiteFideId "2090732"]
[BlackFideId "5091756"]
[WhiteElo "2369"]
[BlackElo "2364"]

1. e4 {[%clk 00:03:03]} d5 {[%clk 00:03:03]} {[%emt 00:00:01]} 2. exd5 {[%clk
00:03:01]} {[%emt 00:00:04]} Qxd5 {[%clk 00:03:04]} {[%emt 00:00:01]} 3. Nc3
{[%clk 00:03:00]} {[%emt 00:00:02]} Qa5 {[%clk 00:03:05]} {[%emt 00:00:02]} 4.
d4 {[%clk 00:02:58]} {[%emt 00:00:04]} Bf5 {[%clk 00:03:06]} {[%emt 00:00:02]}
5. Nf3 {[%clk 00:02:55]} {[%emt 00:00:05]} e6 {[%clk 00:03:07]} {[%emt
00:00:01]} 6. g3 {[%clk 00:02:49]} {[%emt 00:00:08]} Nc6 {[%clk 00:02:54]}
{[%emt 00:00:15]} 7. Bd2 {[%clk 00:02:48]} {[%emt 00:00:02]} Bb4 {[%clk
00:02:46]} {[%emt 00:00:11]} 8. Bg2 {[%clk 00:02:41]} {[%emt 00:00:09]} Nf6
{[%clk 00:02:06]} {[%emt 00:00:42]} 9. a3 {[%clk 00:02:20]} {[%emt 00:00:23]}
Bxc3 {[%clk 00:02:06]} {[%emt 00:00:02]} 10. Bxc3 {[%clk 00:02:20]} {[%emt
00:00:02]} Qa6 {[%clk 00:01:48]} {[%emt 00:00:20]} 11. a4 {[%clk 00:01:54]}
{[%emt 00:00:28]} Ne7 {[%clk 00:01:25]} {[%emt 00:00:25]} 12. Bf1 {[%clk
00:01:10]} {[%emt 00:00:46]} Qd6 {[%clk 00:01:25]} {[%emt 00:00:03]} 13. Bd2
{[%clk 00:00:50]} {[%emt 00:00:22]} Be4 {[%clk 00:00:47]} {[%emt 00:00:40]} 14.
Be2 {[%clk 00:00:34]} {[%emt 00:00:18]} O-O {[%clk 00:00:31]} {[%emt 00:00:18]}
15. c3 {[%clk 00:00:34]} {[%emt 00:00:02]} a5 {[%clk 00:00:24]} {[%emt
00:00:10]} 16. O-O {[%clk 00:00:33]} {[%emt 00:00:03]} Ng6 {[%clk 00:00:20]}
{[%emt 00:00:06]} 17. Bg5 {[%clk 00:00:27]} {[%emt 00:00:07]} b6 {[%clk
00:00:13]} {[%emt 00:00:10]} 18. Nd2 {[%clk 00:00:27]} {[%emt 00:00:02]} Bb7
{[%clk 00:00:13]} {[%emt 00:00:02]} 19. Bf3 {[%clk 00:00:24]} {[%emt 00:00:05]}
Bxf3 {[%clk 00:00:11]} {[%emt 00:00:04]} 20. Qxf3 {[%clk 00:00:24]} Qd5 {[%clk
00:00:06]} {[%emt 00:00:07]} 21. h4 {[%clk 00:00:15]} {[%emt 00:00:11]} Qxf3
{[%clk 00:00:06]} {[%emt 00:00:02]} 22. Nxf3 {[%clk 00:00:16]} Ne4 {[%clk
00:00:05]} {[%emt 00:00:03]} 23. Be3 {[%clk 00:00:16]} {[%emt 00:00:02]} Ne7
{[%clk 00:00:06]} {[%emt 00:00:01]} 24. Ne5 {[%clk 00:00:17]} {[%emt 00:00:01]}
Rfd8 {[%clk 00:00:07]} {[%emt 00:00:01]} 25. Rfe1 {[%clk 00:00:17]} {[%emt
00:00:01]} Nd6 {[%clk 00:00:08]} {[%emt 00:00:02]} 26. Bf4 {[%clk 00:00:17]}
{[%emt 00:00:02]} f6 {[%clk 00:00:06]} {[%emt 00:00:03]} 27. Nd3 {[%clk
00:00:16]} {[%emt 00:00:03]} Kf7 {[%clk 00:00:08]} {[%emt 00:00:01]} 28. Re2
{[%clk 00:00:16]} {[%emt 00:00:02]} Nd5 {[%clk 00:00:09]} {[%emt 00:00:01]} 29.
Rae1 {[%clk 00:00:16]} {[%emt 00:00:02]} Re8 {[%clk 00:00:10]} {[%emt
00:00:01]} 30. Bc1 {[%clk 00:00:15]} {[%emt 00:00:02]} Rad8 {[%clk 00:00:07]}
{[%emt 00:00:06]} 31. Kf1 {[%clk 00:00:14]} {[%emt 00:00:03]} h5 {[%clk
00:00:07]} {[%emt 00:00:01]} 32. Rc2 {[%clk 00:00:14]} {[%emt 00:00:02]} Nf5
{[%clk 00:00:05]} {[%emt 00:00:04]} 33. b3 {[%clk 00:00:12]} {[%emt 00:00:04]}
Nde7 {[%clk 00:00:05]} {[%emt 00:00:02]} 34. Nf4 {[%clk 00:00:11]} {[%emt
00:00:02]} Nd5 {[%clk 00:00:04]} {[%emt 00:00:03]} 35. Nxh5 {[%clk 00:00:11]}
{[%emt 00:00:02]} g6 {[%clk 00:00:04]} {[%emt 00:00:02]} 36. Nf4 {[%clk
00:00:12]} e5 {[%clk 00:00:04]} {[%emt 00:00:03]} 37. Nxd5 {[%clk 00:00:11]}
{[%emt 00:00:02]} Rxd5 {[%clk 00:00:05]} 38. Rce2 {[%clk 00:00:12]} {[%emt
00:00:02]} c5 {[%clk 00:00:04]} {[%emt 00:00:04]} 39. dxe5 {[%clk 00:00:11]}
{[%emt 00:00:02]} fxe5 {[%clk 00:00:05]} {[%emt 00:00:01]} 40. Bf4 {[%clk
00:00:12]} {[%emt 00:00:01]} c4 {[%clk 00:00:04]} {[%emt 00:00:03]} 41. bxc4
{[%clk 00:00:12]} {[%emt 00:00:02]} Rc5 {[%clk 00:00:05]} {[%emt 00:00:01]} 42.
Rxe5 {[%clk 00:00:11]} {[%emt 00:00:03]} Rexe5 {[%clk 00:00:06]} 43. Rxe5
{[%clk 00:00:12]} {[%emt 00:00:01]} Rxc4 {[%clk 00:00:07]} 44. h5 Rxa4 45.
hxg6+ {[%clk 00:00:13]} Kxg6 {[%clk 00:00:06]} 46. Re6+ {[%clk 00:00:15]} Kh5
{[%clk 00:00:06]} {[%emt 00:00:01]} 47. Rxb6 {[%clk 00:00:14]} {[%emt
00:00:02]} Kg4 {[%clk 00:00:04]} {[%emt 00:00:05]} 48. Kg2 {[%clk 00:00:14]}
{[%emt 00:00:02]} Nh4+ {[%clk 00:00:05]} {[%emt 00:00:01]} 49. gxh4 {[%clk
00:00:09]} Rxf4 {[%clk 00:00:06]} {[%emt 00:00:08]} 50. Rb5 Kxh4 {[%clk
00:00:03]} 51. Rxa5 {[%clk 00:00:05]} {[%emt 00:00:02]} Rc4 {[%clk 00:00:04]}
{[%emt 00:00:01]} 52. Ra3 {[%clk 00:00:06]} Kg4 {[%clk 00:00:05]} 53. Rb3
{[%clk 00:00:07]} 0-1

[Event "Grandmaster Triathlon - Blitz (GM2)"]
[Site "Biel, Switzerland"]
[Date "2026.07.19"]
[Round "2.3"]
[White "Materia, Marco"]
[Black "Kosteniuk, Alexandra"]
[Result "1/2-1/2"]
[TimeControl "3 + 2"]
[WhiteTitle "-"]
[BlackTitle "-"]
[WhiteFideId "45150451"]
[BlackFideId "4128125"]
[WhiteElo "2509"]
[BlackElo "2392"]

1. Nf3 {[%clk 00:03:03]} Nf6 {[%clk 00:03:04]} 2. c4 {[%clk 00:03:04]} {[%emt
00:00:01]} e6 {[%clk 00:03:04]} {[%emt 00:00:01]} 3. b3 {[%clk 00:03:05]}
{[%emt 00:00:01]} d5 {[%clk 00:03:05]} {[%emt 00:00:01]} 4. Bb2 {[%clk
00:03:06]} {[%emt 00:00:01]} c5 {[%clk 00:03:06]} {[%emt 00:00:01]} 5. e3
{[%clk 00:03:07]} {[%emt 00:00:01]} Nc6 {[%clk 00:03:06]} {[%emt 00:00:01]} 6.
cxd5 {[%clk 00:03:08]} {[%emt 00:00:02]} exd5 {[%clk 00:03:00]} {[%emt
00:00:08]} 7. d4 {[%clk 00:03:09]} cxd4 {[%clk 00:02:55]} {[%emt 00:00:07]} 8.
Nxd4 {[%clk 00:03:10]} {[%emt 00:00:01]} Bb4+ {[%clk 00:02:56]} 9. Bc3 {[%clk
00:03:11]} Qa5 {[%clk 00:02:51]} {[%emt 00:00:08]} 10. Qd2 {[%clk 00:03:12]}
Bxc3 {[%clk 00:02:40]} {[%emt 00:00:13]} 11. Nxc3 {[%clk 00:03:12]} {[%emt
00:00:01]} O-O {[%clk 00:02:37]} {[%emt 00:00:05]} 12. Nxc6 {[%clk 00:02:56]}
{[%emt 00:00:18]} bxc6 {[%clk 00:02:38]} {[%emt 00:00:01]} 13. Bd3 {[%clk
00:02:50]} {[%emt 00:00:08]} Qb4 {[%clk 00:02:23]} {[%emt 00:00:17]} 14. Na4
{[%clk 00:02:43]} {[%emt 00:00:08]} Qh4 {[%clk 00:02:21]} {[%emt 00:00:04]} 15.
Rc1 {[%clk 00:02:34]} {[%emt 00:00:11]} Bd7 {[%clk 00:02:17]} {[%emt 00:00:06]}
16. h3 {[%clk 00:02:26]} {[%emt 00:00:10]} Rac8 {[%clk 00:02:03]} {[%emt
00:00:16]} 17. Nc5 {[%clk 00:02:26]} {[%emt 00:00:02]} Be6 {[%clk 00:01:49]}
{[%emt 00:00:16]} 18. O-O {[%clk 00:02:22]} {[%emt 00:00:06]} Rfe8 {[%clk
00:01:45]} {[%emt 00:00:07]} 19. Nxe6 {[%clk 00:02:13]} {[%emt 00:00:11]} fxe6
{[%clk 00:01:45]} {[%emt 00:00:02]} 20. Rc5 {[%clk 00:02:04]} {[%emt 00:00:11]}
Nd7 {[%clk 00:01:43]} {[%emt 00:00:04]} 21. Ra5 {[%clk 00:02:05]} Rc7 {[%clk
00:01:42]} {[%emt 00:00:03]} 22. Rc1 {[%clk 00:02:04]} {[%emt 00:00:02]} Rf8
{[%clk 00:01:33]} {[%emt 00:00:11]} 23. Ra4 {[%clk 00:02:00]} {[%emt 00:00:06]}
Qe7 {[%clk 00:01:29]} {[%emt 00:00:06]} 24. Qa5 {[%clk 00:01:53]} {[%emt
00:00:09]} Ne5 {[%clk 00:01:22]} {[%emt 00:00:09]} 25. Be2 {[%clk 00:01:48]}
{[%emt 00:00:07]} c5 {[%clk 00:01:22]} {[%emt 00:00:02]} 26. Qc3 {[%clk
00:01:42]} {[%emt 00:00:08]} Ng6 {[%clk 00:01:16]} {[%emt 00:00:08]} 27. Ra5
{[%clk 00:01:38]} {[%emt 00:00:06]} Qh4 {[%clk 00:01:03]} {[%emt 00:00:15]} 28.
Qe1 {[%clk 00:01:38]} {[%emt 00:00:01]} c4 {[%clk 00:00:52]} {[%emt 00:00:14]}
29. bxc4 {[%clk 00:01:39]} dxc4 {[%clk 00:00:53]} 30. f4 {[%clk 00:01:24]}
{[%emt 00:00:17]} Qxe1+ {[%clk 00:00:48]} {[%emt 00:00:07]} 31. Rxe1 {[%clk
00:01:24]} {[%emt 00:00:01]} c3 {[%clk 00:00:50]} 32. Rc1 {[%clk 00:01:24]}
{[%emt 00:00:02]} Rd8 {[%clk 00:00:47]} {[%emt 00:00:05]} 33. Ra4 {[%clk
00:01:22]} {[%emt 00:00:04]} Ne7 {[%clk 00:00:30]} {[%emt 00:00:19]} 34. Rc4
{[%clk 00:01:21]} {[%emt 00:00:04]} Rxc4 {[%clk 00:00:17]} {[%emt 00:00:15]} 35.
Bxc4 {[%clk 00:01:21]} {[%emt 00:00:01]} Nd5 {[%clk 00:00:18]} 36. Bxd5 {[%clk
00:01:21]} {[%emt 00:00:02]} Rxd5 {[%clk 00:00:19]} 37. Rxc3 {[%clk 00:01:22]}
{[%emt 00:00:01]} Ra5 {[%clk 00:00:21]} 38. a3 {[%clk 00:01:22]} {[%emt
00:00:02]} Kf7 {[%clk 00:00:22]} {[%emt 00:00:01]} 39. Kf2 {[%clk 00:01:22]}
{[%emt 00:00:02]} Ra4 {[%clk 00:00:23]} {[%emt 00:00:01]} 40. Kf3 {[%clk
00:01:23]} {[%emt 00:00:01]} Kf6 {[%clk 00:00:24]} 41. g4 {[%clk 00:01:22]}
{[%emt 00:00:03]} h6 {[%clk 00:00:25]} {[%emt 00:00:01]} 42. h4 {[%clk
00:01:19]} {[%emt 00:00:04]} g6 {[%clk 00:00:09]} {[%emt 00:00:18]} 43. g5+
{[%clk 00:01:17]} {[%emt 00:00:04]} hxg5 {[%clk 00:00:10]} 44. hxg5+ {[%clk
00:01:18]} Kf7 {[%clk 00:00:12]} 45. e4 {[%clk 00:01:09]} {[%emt 00:00:11]} Ke7
{[%clk 00:00:12]} {[%emt 00:00:02]} 46. Ke3 {[%clk 00:01:08]} {[%emt 00:00:03]}
Kd6 {[%clk 00:00:13]} 47. Rd3+ {[%clk 00:01:08]} {[%emt 00:00:03]} Ke7 {[%clk
00:00:14]} 48. Rb3 {[%clk 00:01:07]} {[%emt 00:00:03]} Kd6 {[%clk 00:00:14]}
{[%emt 00:00:03]} 49. e5+ {[%clk 00:01:03]} {[%emt 00:00:06]} Ke7 {[%clk
00:00:11]} {[%emt 00:00:04]} 50. Rc3 {[%clk 00:01:01]} {[%emt 00:00:04]} Kf7
{[%clk 00:00:11]} {[%emt 00:00:03]} 51. Kf3 {[%clk 00:00:59]} {[%emt 00:00:04]}
Ke7 {[%clk 00:00:11]} {[%emt 00:00:01]} 52. Kg4 {[%clk 00:00:59]} {[%emt
00:00:01]} Kf7 {[%clk 00:00:13]} {[%emt 00:00:01]} 53. Rb3 {[%clk 00:00:58]}
{[%emt 00:00:03]} Ra5 {[%clk 00:00:11]} {[%emt 00:00:04]} 54. Kg3 {[%clk
00:00:55]} {[%emt 00:00:05]} Ra4 {[%clk 00:00:12]} {[%emt 00:00:02]} 55. Rf3
{[%clk 00:00:54]} {[%emt 00:00:02]} Ke7 {[%clk 00:00:11]} {[%emt 00:00:03]} 56.
Kf2 {[%clk 00:00:55]} Kf7 {[%clk 00:00:12]} {[%emt 00:00:02]} 57. Ke2 {[%clk
00:00:55]} Ke7 {[%clk 00:00:12]} {[%emt 00:00:01]} 58. Kd2 {[%clk 00:00:57]}
Kf7 {[%clk 00:00:10]} {[%emt 00:00:05]} 59. Kc2 {[%clk 00:00:58]} a5 {[%clk
00:00:05]} {[%emt 00:00:07]} 60. Kb3 {[%clk 00:00:57]} {[%emt 00:00:02]} Re4
{[%clk 00:00:06]} 61. a4 {[%clk 00:00:49]} {[%emt 00:00:11]} Rb4+ {[%clk
00:00:05]} {[%emt 00:00:03]} 62. Ka3 {[%clk 00:00:50]} Re4 {[%clk 00:00:06]} 63.
Rb3 {[%clk 00:00:51]} Rxf4 {[%clk 00:00:07]} 64. Rb7+ {[%clk 00:00:52]} Kf8
{[%clk 00:00:08]} {[%emt 00:00:01]} 65. Rb5 {[%clk 00:00:54]} {[%emt 00:00:01]}
Rf3+ {[%clk 00:00:07]} {[%emt 00:00:03]} 66. Kb2 {[%clk 00:00:54]} {[%emt
00:00:01]} Rf5 {[%clk 00:00:03]} {[%emt 00:00:06]} 67. Rxa5 {[%clk 00:00:55]}
{[%emt 00:00:01]} Rxg5 {[%clk 00:00:05]} 68. Rc5 {[%clk 00:00:56]} {[%emt
00:00:01]} Rg2+ {[%clk 00:00:04]} {[%emt 00:00:03]} 69. Kb3 {[%clk 00:00:57]}
Rg1 {[%clk 00:00:03]} {[%emt 00:00:03]} 70. a5 {[%clk 00:00:58]} {[%emt
00:00:01]} Rb1+ {[%clk 00:00:03]} {[%emt 00:00:01]} 71. Ka4 {[%clk 00:00:58]}
{[%emt 00:00:02]} Ra1+ {[%clk 00:00:04]} {[%emt 00:00:01]} 72. Kb5 {[%clk
00:00:59]} Kg7 {[%clk 00:00:05]} {[%emt 00:00:01]} 73. a6 {[%clk 00:01:00]} g5
{[%clk 00:00:06]} {[%emt 00:00:01]} 74. Rc4 {[%clk 00:01:01]} Rb1+ {[%clk
00:00:05]} {[%emt 00:00:03]} 75. Rb4 {[%clk 00:01:01]} {[%emt 00:00:02]} Rd1
{[%clk 00:00:06]} 76. a7 {[%clk 00:01:02]} {[%emt 00:00:01]} Rd8 {[%clk
00:00:05]} {[%emt 00:00:03]} 77. Kc6 {[%clk 00:01:03]} Ra8 {[%clk 00:00:05]}
{[%emt 00:00:02]} 78. Rb7+ {[%clk 00:01:03]} {[%emt 00:00:02]} Kg6 {[%clk
00:00:06]} 79. Kb6 {[%clk 00:01:03]} {[%emt 00:00:02]} Kf5 {[%clk 00:00:07]}
{[%emt 00:00:01]} 80. Rb8 {[%clk 00:01:04]} Rxa7 {[%clk 00:00:07]} {[%emt
00:00:02]} 81. Kxa7 {[%clk 00:01:06]} Kxe5 {[%clk 00:00:08]} {[%emt 00:00:01]}
82. Kb6 {[%clk 00:01:07]} g4 {[%clk 00:00:09]} 83. Kc5 {[%clk 00:01:08]} g3
{[%clk 00:00:11]} 84. Rg8 {[%clk 00:01:03]} {[%emt 00:00:07]} Kf4 {[%clk
00:00:11]} {[%emt 00:00:02]} 85. Kd4 {[%clk 00:01:05]} {[%emt 00:00:01]} Kf3
{[%clk 00:00:09]} {[%emt 00:00:04]} 86. Kd3 {[%clk 00:01:06]} Kf2 {[%clk
00:00:10]} 87. Rf8+ {[%clk 00:01:06]} {[%emt 00:00:01]} Ke1 {[%clk 00:00:11]}
{[%emt 00:00:01]} 88. Rg8 {[%clk 00:00:57]} {[%emt 00:00:11]} Kf2 {[%clk
00:00:12]} {[%emt 00:00:01]} 89. Rf8+ {[%clk 00:00:58]} {[%emt 00:00:01]} Ke1
{[%clk 00:00:13]} 90. Ke4 {[%clk 00:00:56]} {[%emt 00:00:03]} g2 {[%clk
00:00:13]} {[%emt 00:00:02]} 91. Rg8 {[%clk 00:00:58]} Kf2 {[%clk 00:00:14]} 92.
Rxg2+ {[%clk 00:00:58]} {[%emt 00:00:01]} Kxg2 {[%clk 00:00:16]} {[%emt
00:00:01]} 1/2-1/2

[Event "Grandmaster Triathlon - Blitz (GM2)"]
[Site "Biel, Switzerland"]
[Date "2026.07.19"]
[Round "3.1"]
[White "Xiao, Tong(Qd)"]
[Black "Materia, Marco"]
[Result "1/2-1/2"]
[TimeControl "3 + 2"]
[WhiteTitle "-"]
[BlackTitle "-"]
[WhiteFideId "8622388"]
[BlackFideId "45150451"]
[WhiteElo "2465"]
[BlackElo "2509"]

1. e4 {[%clk 00:03:04]} d6 {[%clk 00:03:02]} {[%emt 00:00:03]} 2. d4 {[%clk
00:03:04]} {[%emt 00:00:01]} Nf6 {[%clk 00:03:03]} {[%emt 00:00:01]} 3. Nc3
{[%clk 00:03:05]} g6 {[%clk 00:03:03]} {[%emt 00:00:02]} 4. Be3 {[%clk
00:03:06]} {[%emt 00:00:01]} Bg7 {[%clk 00:03:04]} {[%emt 00:00:01]} 5. Qd2
{[%clk 00:03:07]} c6 {[%clk 00:03:05]} 6. a4 {[%clk 00:03:07]} {[%emt
00:00:02]} O-O {[%clk 00:03:04]} {[%emt 00:00:03]} 7. f3 {[%clk 00:03:05]}
{[%emt 00:00:04]} Nbd7 {[%clk 00:03:04]} {[%emt 00:00:01]} 8. Bd3 {[%clk
00:03:03]} {[%emt 00:00:04]} e5 {[%clk 00:03:04]} {[%emt 00:00:03]} 9. Nge2
{[%clk 00:03:04]} d5 {[%clk 00:02:51]} {[%emt 00:00:15]} 10. exd5 {[%clk
00:03:02]} {[%emt 00:00:04]} Nxd5 {[%clk 00:02:52]} {[%emt 00:00:01]} 11. Nxd5
{[%clk 00:03:02]} {[%emt 00:00:02]} cxd5 {[%clk 00:02:53]} {[%emt 00:00:01]} 12.
O-O {[%clk 00:02:58]} {[%emt 00:00:06]} Re8 {[%clk 00:02:51]} {[%emt 00:00:04]}
13. dxe5 {[%clk 00:02:55]} {[%emt 00:00:05]} Nxe5 {[%clk 00:02:52]} {[%emt
00:00:01]} 14. Bf2 {[%clk 00:02:26]} {[%emt 00:00:31]} Nxd3 {[%clk 00:02:46]}
{[%emt 00:00:08]} 15. cxd3 {[%clk 00:02:26]} {[%emt 00:00:01]} d4 {[%clk
00:02:29]} {[%emt 00:00:19]} 16. Rfe1 {[%clk 00:02:24]} {[%emt 00:00:04]} Qd6
{[%clk 00:02:23]} {[%emt 00:00:08]} 17. Ng3 {[%clk 00:01:44]} {[%emt 00:00:42]}
Rxe1+ {[%clk 00:02:21]} {[%emt 00:00:04]} 18. Rxe1 {[%clk 00:01:46]} f5 {[%clk
00:02:07]} {[%emt 00:00:16]} 19. Re8+ {[%clk 00:01:33]} {[%emt 00:00:15]} Kf7
{[%clk 00:02:08]} 20. Qe1 {[%clk 00:01:35]} Qd7 {[%clk 00:01:58]} {[%emt
00:00:12]} 21. Re2 {[%clk 00:01:35]} {[%emt 00:00:01]} b6 {[%clk 00:01:53]}
{[%emt 00:00:07]} 22. Nf1 {[%clk 00:01:24]} {[%emt 00:00:13]} Ba6 {[%clk
00:01:51]} {[%emt 00:00:04]} 23. Qd1 {[%clk 00:01:25]} Qd5 {[%clk 00:01:32]}
{[%emt 00:00:21]} 24. Bh4 {[%clk 00:01:19]} {[%emt 00:00:08]} Re8 {[%clk
00:01:32]} {[%emt 00:00:02]} 25. Rc2 {[%clk 00:01:20]} {[%emt 00:00:01]} Be5
{[%clk 00:01:25]} {[%emt 00:00:09]} 26. b4 {[%clk 00:01:12]} {[%emt 00:00:10]}
Bc8 {[%clk 00:01:11]} {[%emt 00:00:15]} 27. Nd2 {[%clk 00:01:14]} Bd7 {[%clk
00:01:10]} {[%emt 00:00:04]} 28. b5 {[%clk 00:01:12]} {[%emt 00:00:04]} Bf4
{[%clk 00:01:04]} {[%emt 00:00:07]} 29. Nc4 {[%clk 00:00:55]} {[%emt 00:00:19]}
g5 {[%clk 00:00:57]} {[%emt 00:00:09]} 30. Be1 {[%clk 00:00:52]} {[%emt
00:00:04]} Kg6 {[%clk 00:00:54]} {[%emt 00:00:05]} 31. Re2 {[%clk 00:00:48]}
{[%emt 00:00:06]} Be3+ {[%clk 00:00:54]} {[%emt 00:00:02]} 32. Kh1 {[%clk
00:00:48]} {[%emt 00:00:01]} f4 {[%clk 00:00:54]} {[%emt 00:00:03]} 33. Rc2
{[%clk 00:00:46]} {[%emt 00:00:05]} Bf5 {[%clk 00:00:50]} {[%emt 00:00:06]} 34.
Bb4 {[%clk 00:00:45]} {[%emt 00:00:03]} Rc8 {[%clk 00:00:49]} {[%emt 00:00:03]}
35. Nd6 {[%clk 00:00:32]} {[%emt 00:00:15]} Rxc2 {[%clk 00:00:50]} {[%emt
00:00:01]} 36. Qxc2 {[%clk 00:00:33]} Be6 {[%clk 00:00:50]} {[%emt 00:00:02]}
37. Nc4 {[%clk 00:00:18]} {[%emt 00:00:18]} g4 {[%clk 00:00:48]} {[%emt
00:00:03]} 38. fxg4 {[%clk 00:00:05]} {[%emt 00:00:15]} f3 {[%clk 00:00:41]}
{[%emt 00:00:09]} 39. h3 {[%clk 00:00:04]} {[%emt 00:00:03]} h5 {[%clk
00:00:36]} {[%emt 00:00:07]} 40. gxh5+ {[%clk 00:00:04]} {[%emt 00:00:02]} Qxh5
{[%clk 00:00:37]} 41. Nxe3 {[%clk 00:00:04]} {[%emt 00:00:02]} dxe3 {[%clk
00:00:37]} {[%emt 00:00:02]} 42. Qc6 {[%clk 00:00:05]} fxg2+ {[%clk 00:00:26]}
{[%emt 00:00:14]} 43. Qxg2+ {[%clk 00:00:06]} {[%emt 00:00:01]} Kh7 {[%clk
00:00:24]} {[%emt 00:00:04]} 44. Qe4+ {[%clk 00:00:06]} {[%emt 00:00:01]} Bf5
{[%clk 00:00:25]} 45. Qxe3 {[%clk 00:00:06]} {[%emt 00:00:02]} Bxh3 {[%clk
00:00:22]} {[%emt 00:00:05]} 46. Qe7+ {[%clk 00:00:06]} {[%emt 00:00:03]} Kg8
{[%clk 00:00:22]} {[%emt 00:00:02]} 47. Qf8+ {[%clk 00:00:06]} {[%emt
00:00:02]} Kh7 {[%clk 00:00:23]} 48. Qe7+ {[%clk 00:00:07]} Kg8 {[%clk
00:00:24]} {[%emt 00:00:01]} 49. Qd8+ {[%clk 00:00:04]} {[%emt 00:00:06]} Kf7
{[%clk 00:00:24]} {[%emt 00:00:01]} 50. Qe7+ {[%clk 00:00:04]} {[%emt
00:00:02]} Kg8 {[%clk 00:00:25]} {[%emt 00:00:01]} 51. Qf8+ {[%clk 00:00:05]}
{[%emt 00:00:01]} Kh7 {[%clk 00:00:26]} 52. Kg1 {[%clk 00:00:04]} {[%emt
00:00:02]} Qd1+ {[%clk 00:00:26]} {[%emt 00:00:02]} 53. Kf2 {[%clk 00:00:05]}
Qxd3 {[%clk 00:00:25]} {[%emt 00:00:03]} 54. Qf7+ {[%clk 00:00:06]} {[%emt
00:00:01]} Kh6 {[%clk 00:00:26]} 55. Bf8+ {[%clk 00:00:06]} {[%emt 00:00:02]}
Kg5 {[%clk 00:00:28]} 56. Be7+ {[%clk 00:00:08]} Kg4 {[%clk 00:00:28]} {[%emt
00:00:01]} 57. Qe6+ {[%clk 00:00:04]} {[%emt 00:00:05]} Qf5+ {[%clk 00:00:30]}
58. Qxf5+ {[%clk 00:00:05]} {[%emt 00:00:01]} Kxf5 {[%clk 00:00:31]} {[%emt
00:00:01]} 59. Bd6 {[%clk 00:00:07]} Bg4 {[%clk 00:00:32]} 1/2-1/2